[Event "Titled Tuesday Blitz July 25 Early 2023"]
[White "KhalilMousavi98"]
[Black "Sipila, Vilka"]
[BlackFideId "505455"]
[WhiteElo "2829"]
[BlackElo "2619"]
[Result "0-1"]
[Round "10"]
[TimeControl "180+2"]
[Date "2023.07.25"]
[WhiteClock "0:00:33"]
[BlackClock "0:00:25"]
[Board "44"]

1. e4 {[%clk 0:03:00]}  c5 {[%clk 0:02:58]} 2. Nf3 {[%clk 0:03:01]}  e6 {[%clk 0:02:58]} 3. d4 {[%clk 0:03:01]}  cxd4 {[%clk 0:02:59]} 4. Nxd4 {[%clk 0:03:01]}  Nf6 {[%clk 0:03:00]} 5. Nc3 {[%clk 0:03:02]}  Nc6 {[%clk 0:03:00]} 6. Nxc6 {[%clk 0:02:59]}  bxc6 {[%clk 0:03:01]} 7. e5 {[%clk 0:03:00]}  Nd5 {[%clk 0:03:01]} 8. Ne4 {[%clk 0:03:01]}  Bb7 {[%clk 0:02:59]} 9. Bd3 {[%clk 0:02:51]}  c5 {[%clk 0:02:46]} 10. a3 {[%clk 0:02:43]}  Qc7 {[%clk 0:02:40]} 11. c4 {[%clk 0:02:41]}  Qxe5 {[%clk 0:02:32]} 12. Qf3 {[%clk 0:02:31]}  Nf6 {[%clk 0:02:11]} 13. Bf4 {[%clk 0:02:29]}  Bxe4 {[%clk 0:02:08]} 14. Bxe5 {[%clk 0:02:29]}  Bxf3 {[%clk 0:02:08]} 15. gxf3 {[%clk 0:02:30]}  d6 {[%clk 0:02:07]} 16. Bxf6 {[%clk 0:02:29]}  gxf6 {[%clk 0:02:08]} 17. b4 {[%clk 0:02:27]}  f5 {[%clk 0:01:37]} 18. Kd2 {[%clk 0:02:19]}  Bh6+ {[%clk 0:01:31]} 19. Kc2 {[%clk 0:02:14]}  Bg7 {[%clk 0:01:29]} 20. Ra2 {[%clk 0:02:11]}  Bd4 {[%clk 0:01:29]} 21. Kb3 {[%clk 0:02:06]}  a5 {[%clk 0:01:26]} 22. bxa5 {[%clk 0:01:56]}  Ke7 {[%clk 0:01:21]} 23. Kc2 {[%clk 0:01:47]}  Bxf2 {[%clk 0:01:19]} 24. Rb1 {[%clk 0:01:43]}  Rxa5 {[%clk 0:01:15]} 25. Rb5 {[%clk 0:01:42]}  Ra7 {[%clk 0:01:11]} 26. a4 {[%clk 0:01:42]}  Rha8 {[%clk 0:01:04]} 27. Kb3 {[%clk 0:01:40]}  Be1 {[%clk 0:01:03]} 28. Bc2 {[%clk 0:01:21]}  Ba5 {[%clk 0:00:59]} 29. Bd3 {[%clk 0:01:13]}  Rg8 {[%clk 0:00:59]} 30. Re2 {[%clk 0:01:11]}  Kf6 {[%clk 0:00:57]} 31. Bc2 {[%clk 0:00:58]}  Rg1 {[%clk 0:00:55]} 32. Rf2 {[%clk 0:00:56]}  Be1 {[%clk 0:00:47]} 33. Re2 {[%clk 0:00:52]}  Rf1 {[%clk 0:00:47]} 34. Rxe1 {[%clk 0:00:44]}  Rxe1 {[%clk 0:00:47]} 35. Kb2 {[%clk 0:00:41]}  Ke5 {[%clk 0:00:41]} 36. a5 {[%clk 0:00:40]}  Kd4 {[%clk 0:00:40]} 37. Bb3 {[%clk 0:00:40]}  d5 {[%clk 0:00:37]} 38. Ba2 {[%clk 0:00:35]}  Re2+ {[%clk 0:00:27]} 39. Ka3 {[%clk 0:00:32]}  Rxa2+ {[%clk 0:00:25]} 40. Kxa2 {[%clk 0:00:33]}  Kxc4 {[%clk 0:00:26]} 41. Rb8 {[%clk 0:00:33]}  Rxa5+ {[%clk 0:00:25]} 0-1


[Site "https://www.chess.com"]

[Event "Titled Tuesday Blitz July 25 Early 2023"]
[White "Mamedov, Edgar"]
[Black "Samunenkov, Ihor"]
[WhiteFideId "13739980"]
[BlackFideId "14187086"]
[WhiteElo "2617"]
[BlackElo "2786"]
[Result "0-1"]
[Round "10"]
[TimeControl "180+2"]
[Date "2023.07.25"]
[WhiteClock "0:00:00"]
[BlackClock "0:00:03"]
[Board "46"]

1. d4 {[%clk 0:03:00]}  Nf6 {[%clk 0:02:56]} 2. c4 {[%clk 0:03:00]}  e6 {[%clk 0:02:57]} 3. Nf3 {[%clk 0:02:59]}  b6 {[%clk 0:02:57]} 4. g3 {[%clk 0:02:58]}  c6 {[%clk 0:02:56]} 5. Bg2 {[%clk 0:02:57]}  Be7 {[%clk 0:02:56]} 6. O-O {[%clk 0:02:57]}  O-O {[%clk 0:02:57]} 7. Nc3 {[%clk 0:02:56]}  d5 {[%clk 0:02:57]} 8. Nd2 {[%clk 0:02:55]}  a5 {[%clk 0:02:56]} 9. Re1 {[%clk 0:02:36]}  Ba6 {[%clk 0:02:52]} 10. b3 {[%clk 0:02:35]}  b5 {[%clk 0:02:52]} 11. cxb5 {[%clk 0:02:32]}  cxb5 {[%clk 0:02:53]} 12. Bb2 {[%clk 0:02:28]}  Nc6 {[%clk 0:02:48]} 13. e4 {[%clk 0:02:26]}  Rc8 {[%clk 0:02:20]} 14. exd5 {[%clk 0:02:23]}  exd5 {[%clk 0:01:57]} 15. a4 {[%clk 0:02:18]}  b4 {[%clk 0:01:55]} 16. Nb5 {[%clk 0:02:18]}  Qb6 {[%clk 0:01:54]} 17. Nf1 {[%clk 0:01:43]}  Bxb5 {[%clk 0:01:48]} 18. axb5 {[%clk 0:01:44]}  Qxb5 {[%clk 0:01:48]} 19. Ne3 {[%clk 0:01:43]}  Rfe8 {[%clk 0:01:45]} 20. Qf3 {[%clk 0:01:32]}  Rcd8 {[%clk 0:01:41]} 21. g4 {[%clk 0:01:24]}  h6 {[%clk 0:01:21]} 22. h4 {[%clk 0:01:17]}  Qd3 {[%clk 0:01:02]} 23. Nxd5 {[%clk 0:01:05]}  Qxf3 {[%clk 0:01:01]} 24. Nxe7+ {[%clk 0:01:04]}  Rxe7 {[%clk 0:01:01]} 25. Bxf3 {[%clk 0:01:04]}  Rxe1+ {[%clk 0:01:02]} 26. Rxe1 {[%clk 0:01:03]}  Nxd4 {[%clk 0:01:02]} 27. Bxd4 {[%clk 0:00:54]}  Rxd4 {[%clk 0:01:02]} 28. g5 {[%clk 0:00:53]}  hxg5 {[%clk 0:01:03]} 29. hxg5 {[%clk 0:00:54]}  Nd7 {[%clk 0:00:49]} 30. Ra1 {[%clk 0:00:21]}  Nc5 {[%clk 0:00:30]} 31. Rxa5 {[%clk 0:00:20]}  Nxb3 {[%clk 0:00:31]} 32. Rb5 {[%clk 0:00:17]}  g6 {[%clk 0:00:23]} 33. Bd5 {[%clk 0:00:15]}  Nd2 {[%clk 0:00:20]} 34. f3 {[%clk 0:00:13]}  Nb1 {[%clk 0:00:20]} 35. Kf2 {[%clk 0:00:11]}  Nc3 {[%clk 0:00:17]} 36. Rb8+ {[%clk 0:00:11]}  Kg7 {[%clk 0:00:18]} 37. Bb3 {[%clk 0:00:09]}  Rd2+ {[%clk 0:00:12]} 38. Ke3 {[%clk 0:00:09]}  Rb2 {[%clk 0:00:12]} 39. Bc4 {[%clk 0:00:06]}  Nd1+ {[%clk 0:00:11]} 40. Kf4 {[%clk 0:00:04]}  Rd2 {[%clk 0:00:05]} 41. Rxb4 {[%clk 0:00:04]}  Rd4+ {[%clk 0:00:06]} 42. Ke5 {[%clk 0:00:01]}  Rd7 {[%clk 0:00:06]} 43. Bd5 {[%clk 0:00:01]}  Nc3 {[%clk 0:00:05]} 44. Be4 {[%clk 0:00:01]}  Re7+ {[%clk 0:00:05]} 45. Kd4 {[%clk 0:00:01]}  Ne2+ {[%clk 0:00:04]} 46. Ke3 {[%clk 0:00:02]}  Nc3 {[%clk 0:00:04]} 47. Kd4 {[%clk 0:00:02]}  Nd1 {[%clk 0:00:03]} 48. Rb1 {[%clk 0:00:02]}  Rd7+ {[%clk 0:00:02]} 49. Kc5 {[%clk 0:00:01]}  Ne3 {[%clk 0:00:01]} 50. Kc6 {[%clk 0:00:01]}  Rd8 {[%clk 0:00:01]} 51. Kc7 {[%clk 0:00:01]}  Re8 {[%clk 0:00:01]} 52. Kd7 {[%clk 0:00:01]}  Re5 {[%clk 0:00:02]} 53. Kd6 {[%clk 0:00:01]}  Rxg5 {[%clk 0:00:02]} 54. Re1 {[%clk 0:00:01]}  Nc4+ {[%clk 0:00:03]} 55. Kc6 {[%clk 0:00:01]}  Re5 {[%clk 0:00:03]} 56. Kd7 {[%clk 0:00:00]}  Nd2 {[%clk 0:00:03]} 0-1


[Site "https://www.chess.com"]

[Event "Titled Tuesday Blitz July 25 Early 2023"]
[White "Vakhlamov, Igor L."]
[Black "Arabidze, Meri"]
[WhiteFideId "24126748"]
[BlackFideId "13604040"]
[WhiteElo "2758"]
[BlackElo "2615"]
[Result "1/2-1/2"]
[Round "10"]
[TimeControl "180+2"]
[Date "2023.07.25"]
[WhiteClock "0:00:05"]
[BlackClock "0:00:05"]
[Board "47"]

1. e4 {[%clk 0:02:38]}  c5 {[%clk 0:03:00]} 2. Nf3 {[%clk 0:02:38]}  e6 {[%clk 0:03:00]} 3. Nc3 {[%clk 0:02:39]}  a6 {[%clk 0:02:59]} 4. d4 {[%clk 0:02:39]}  cxd4 {[%clk 0:03:00]} 5. Nxd4 {[%clk 0:02:40]}  Nc6 {[%clk 0:03:01]} 6. Nxc6 {[%clk 0:02:40]}  bxc6 {[%clk 0:03:02]} 7. Qf3 {[%clk 0:02:36]}  d5 {[%clk 0:03:02]} 8. Qg3 {[%clk 0:02:35]}  g6 {[%clk 0:02:53]} 9. Be2 {[%clk 0:02:27]}  Bg7 {[%clk 0:02:53]} 10. O-O {[%clk 0:02:27]}  Nf6 {[%clk 0:02:49]} 11. Bg5 {[%clk 0:02:16]}  h6 {[%clk 0:02:49]} 12. Bf4 {[%clk 0:02:13]}  O-O {[%clk 0:02:49]} 13. Rad1 {[%clk 0:02:11]}  a5 {[%clk 0:02:33]} 14. Rfe1 {[%clk 0:02:10]}  Ba6 {[%clk 0:02:29]} 15. b3 {[%clk 0:02:06]}  Bxe2 {[%clk 0:02:29]} 16. Rxe2 {[%clk 0:02:07]}  Kh7 {[%clk 0:02:18]} 17. Qf3 {[%clk 0:01:59]}  Nxe4 {[%clk 0:01:56]} 18. Nxe4 {[%clk 0:01:57]}  dxe4 {[%clk 0:01:56]} 19. Rxe4 {[%clk 0:01:58]}  Qf6 {[%clk 0:01:51]} 20. Qe3 {[%clk 0:01:31]}  Qb2 {[%clk 0:01:39]} 21. Rc4 {[%clk 0:01:24]}  Rad8 {[%clk 0:01:34]} 22. Re1 {[%clk 0:01:22]}  Rd5 {[%clk 0:01:23]} 23. Rxc6 {[%clk 0:01:11]}  Qxa2 {[%clk 0:01:23]} 24. h3 {[%clk 0:01:08]}  a4 {[%clk 0:01:17]} 25. bxa4 {[%clk 0:00:58]}  Qxa4 {[%clk 0:01:18]} 26. Rc7 {[%clk 0:00:58]}  Rf5 {[%clk 0:01:13]} 27. Bg3 {[%clk 0:00:56]}  h5 {[%clk 0:01:09]} 28. c4 {[%clk 0:00:52]}  Qa5 {[%clk 0:01:03]} 29. Ra7 {[%clk 0:00:48]}  Qb4 {[%clk 0:00:57]} 30. Qe4 {[%clk 0:00:40]}  Qc3 {[%clk 0:00:51]} 31. h4 {[%clk 0:00:29]}  Kg8 {[%clk 0:00:44]} 32. Rd7 {[%clk 0:00:28]}  Rc5 {[%clk 0:00:39]} 33. Red1 {[%clk 0:00:11]}  Rxc4 {[%clk 0:00:39]} 34. Qb7 {[%clk 0:00:11]}  Rd4 {[%clk 0:00:32]} 35. R1xd4 {[%clk 0:00:10]}  Bxd4 {[%clk 0:00:33]} 36. Kh2 {[%clk 0:00:10]}  Be5 {[%clk 0:00:31]} 37. Bxe5 {[%clk 0:00:09]}  Qxe5+ {[%clk 0:00:32]} 38. g3 {[%clk 0:00:08]}  Qf5 {[%clk 0:00:32]} 39. Kg2 {[%clk 0:00:08]}  Kg7 {[%clk 0:00:30]} 40. Qf3 {[%clk 0:00:07]}  Kf6 {[%clk 0:00:23]} 41. Qc3+ {[%clk 0:00:07]}  Qe5 {[%clk 0:00:20]} 42. Qf3+ {[%clk 0:00:08]}  Kg7 {[%clk 0:00:20]} 43. Re7 {[%clk 0:00:07]}  Qf6 {[%clk 0:00:18]} 44. Ra7 {[%clk 0:00:08]}  Rd8 {[%clk 0:00:17]} 45. Rb7 {[%clk 0:00:06]}  Qxf3+ {[%clk 0:00:16]} 46. Kxf3 {[%clk 0:00:06]}  Kf6 {[%clk 0:00:17]} 47. Kg2 {[%clk 0:00:06]}  Rd3 {[%clk 0:00:17]} 48. Rb5 {[%clk 0:00:07]}  e5 {[%clk 0:00:17]} 49. Rb7 {[%clk 0:00:07]}  Ke6 {[%clk 0:00:17]} 50. Ra7 {[%clk 0:00:08]}  f6 {[%clk 0:00:17]} 51. Rg7 {[%clk 0:00:07]}  Kf5 {[%clk 0:00:17]} 52. Rf7 {[%clk 0:00:07]}  Rd6 {[%clk 0:00:17]} 53. Re7 {[%clk 0:00:07]}  Re6 {[%clk 0:00:17]} 54. Ra7 {[%clk 0:00:08]}  Rc6 {[%clk 0:00:17]} 55. Re7 {[%clk 0:00:08]}  g5 {[%clk 0:00:17]} 56. hxg5 {[%clk 0:00:08]}  Kxg5 {[%clk 0:00:18]} 57. Rg7+ {[%clk 0:00:08]}  Kf5 {[%clk 0:00:18]} 58. Rh7 {[%clk 0:00:08]}  Kg6 {[%clk 0:00:18]} 59. Rh8 {[%clk 0:00:09]}  Rc2 {[%clk 0:00:18]} 60. Rg8+ {[%clk 0:00:09]}  Kf5 {[%clk 0:00:19]} 61. Rh8 {[%clk 0:00:10]}  Kg6 {[%clk 0:00:11]} 62. Rg8+ {[%clk 0:00:10]}  Kf7 {[%clk 0:00:12]} 63. Rh8 {[%clk 0:00:10]}  e4 {[%clk 0:00:12]} 64. Kf1 {[%clk 0:00:08]}  Rc5 {[%clk 0:00:11]} 65. Ke2 {[%clk 0:00:08]}  Re5 {[%clk 0:00:08]} 66. Ke3 {[%clk 0:00:07]}  Kg7 {[%clk 0:00:09]} 67. Ra8 {[%clk 0:00:07]}  Kg6 {[%clk 0:00:08]} 68. Rg8+ {[%clk 0:00:07]}  Kf5 {[%clk 0:00:08]} 69. Rh8 {[%clk 0:00:08]}  Kg4 {[%clk 0:00:08]} 70. Rg8+ {[%clk 0:00:08]}  Kh3 {[%clk 0:00:08]} 71. Rg6 {[%clk 0:00:09]}  Rf5 {[%clk 0:00:05]} 72. Rh6 {[%clk 0:00:03]}  Kg2 {[%clk 0:00:05]} 73. Kxe4 {[%clk 0:00:03]}  Rxf2 {[%clk 0:00:05]} 74. Rxh5 {[%clk 0:00:04]}  Kxg3 {[%clk 0:00:06]} 75. Rf5 {[%clk 0:00:04]}  Re2+ {[%clk 0:00:04]} 76. Kd3 {[%clk 0:00:04]}  Re6 {[%clk 0:00:04]} 77. Kd4 {[%clk 0:00:04]}  Kg4 {[%clk 0:00:04]} 78. Rf1 {[%clk 0:00:04]}  f5 {[%clk 0:00:05]} 79. Rg1+ {[%clk 0:00:04]}  Kf4 {[%clk 0:00:05]} 80. Rf1+ {[%clk 0:00:05]}  Kg5 {[%clk 0:00:05]} 81. Rg1+ {[%clk 0:00:05]}  Kf6 {[%clk 0:00:06]} 82. Rf1 {[%clk 0:00:06]}  Re4+ {[%clk 0:00:05]} 83. Kd3 {[%clk 0:00:07]}  Ke5 {[%clk 0:00:06]} 84. Rh1 {[%clk 0:00:06]}  Ra4 {[%clk 0:00:05]} 85. Re1+ {[%clk 0:00:05]}  Kf6 {[%clk 0:00:06]} 86. Re8 {[%clk 0:00:03]}  Ra3+ {[%clk 0:00:05]} 87. Ke2 {[%clk 0:00:04]}  Kg5 {[%clk 0:00:06]} 88. Rb8 {[%clk 0:00:04]}  Kg4 {[%clk 0:00:05]} 89. Kf2 {[%clk 0:00:02]}  Ra2+ {[%clk 0:00:04]} 90. Kf1 {[%clk 0:00:03]}  f4 {[%clk 0:00:03]} 91. Rb3 {[%clk 0:00:03]}  f3 {[%clk 0:00:03]} 92. Rb8 {[%clk 0:00:04]}  Ra1+ {[%clk 0:00:03]} 93. Kf2 {[%clk 0:00:04]}  Ra2+ {[%clk 0:00:04]} 94. Kf1 {[%clk 0:00:04]}  Ra1+ {[%clk 0:00:04]} 95. Kf2 {[%clk 0:00:04]}  Ra2+ {[%clk 0:00:05]} 96. Kf1 {[%clk 0:00:05]} 1/2-1/2


[Site "https://www.chess.com"]

[Event "Titled Tuesday Blitz July 25 Early 2023"]
[White "Richter, Nils"]
[Black "Csonka, Balazs"]
[WhiteFideId "12990809"]
[BlackFideId "742910"]
[WhiteElo "2582"]
[BlackElo "2754"]
[Result "1-0"]
[Round "10"]
[TimeControl "180+2"]
[Date "2023.07.25"]
[WhiteClock "0:00:05"]
[BlackClock "0:00:00"]
[Board "48"]

1. d4 {[%clk 0:03:00]}  Nf6 {[%clk 0:02:59]} 2. c4 {[%clk 0:02:57]}  a6 {[%clk 0:03:00]} 3. Nc3 {[%clk 0:02:52]}  b5 {[%clk 0:03:00]} 4. cxb5 {[%clk 0:02:51]}  axb5 {[%clk 0:03:01]} 5. Nxb5 {[%clk 0:02:51]}  e5 {[%clk 0:03:02]} 6. dxe5 {[%clk 0:02:40]}  Ne4 {[%clk 0:03:02]} 7. Nc3 {[%clk 0:02:31]}  Bb4 {[%clk 0:03:02]} 8. Bd2 {[%clk 0:02:30]}  Nxd2 {[%clk 0:03:02]} 9. Qxd2 {[%clk 0:02:31]}  O-O {[%clk 0:03:02]} 10. Nf3 {[%clk 0:02:30]}  Nc6 {[%clk 0:03:02]} 11. e3 {[%clk 0:02:29]}  Re8 {[%clk 0:03:03]} 12. Be2 {[%clk 0:02:22]}  Nxe5 {[%clk 0:03:03]} 13. Nxe5 {[%clk 0:02:23]}  Rxe5 {[%clk 0:03:03]} 14. O-O {[%clk 0:02:23]}  Bb7 {[%clk 0:03:04]} 15. a3 {[%clk 0:02:20]}  Bd6 {[%clk 0:02:31]} 16. f4 {[%clk 0:02:14]}  Re7 {[%clk 0:02:06]} 17. Bf3 {[%clk 0:01:49]}  Bc5 {[%clk 0:02:04]} 18. Rae1 {[%clk 0:01:46]}  c6 {[%clk 0:01:58]} 19. Kh1 {[%clk 0:01:44]}  d5 {[%clk 0:01:37]} 20. e4 {[%clk 0:01:30]}  Ba6 {[%clk 0:01:16]} 21. Be2 {[%clk 0:01:29]}  Bxe2 {[%clk 0:01:17]} 22. Rxe2 {[%clk 0:01:27]}  dxe4 {[%clk 0:01:17]} 23. Qxd8+ {[%clk 0:01:26]}  Rxd8 {[%clk 0:01:18]} 24. Rxe4 {[%clk 0:01:26]}  Rxe4 {[%clk 0:01:14]} 25. Nxe4 {[%clk 0:01:27]}  Ba7 {[%clk 0:01:13]} 26. h3 {[%clk 0:01:22]}  f5 {[%clk 0:01:12]} 27. Ng3 {[%clk 0:01:18]}  g6 {[%clk 0:01:12]} 28. Rc1 {[%clk 0:01:16]}  Be3 {[%clk 0:01:03]} 29. Rf1 {[%clk 0:01:02]}  Rd2 {[%clk 0:00:59]} 30. b4 {[%clk 0:01:01]}  Ra2 {[%clk 0:00:58]} 31. Rf3 {[%clk 0:00:47]}  Rxa3 {[%clk 0:00:59]} 32. Ne2 {[%clk 0:00:40]}  Kf7 {[%clk 0:00:47]} 33. Kh2 {[%clk 0:00:40]}  Ke7 {[%clk 0:00:29]} 34. Nd4 {[%clk 0:00:37]}  Rd3 {[%clk 0:00:22]} 35. Nxc6+ {[%clk 0:00:36]}  Kd6 {[%clk 0:00:22]} 36. b5 {[%clk 0:00:29]}  Rb3 {[%clk 0:00:10]} 37. Kg3 {[%clk 0:00:16]}  h6 {[%clk 0:00:06]} 38. Ne5 {[%clk 0:00:14]}  Kd5 {[%clk 0:00:04]} 39. Nxg6 {[%clk 0:00:13]}  Ke4 {[%clk 0:00:04]} 40. Kh4 {[%clk 0:00:10]}  Rxb5 {[%clk 0:00:04]} 41. Kh5 {[%clk 0:00:10]}  Rb2 {[%clk 0:00:03]} 42. Rg3 {[%clk 0:00:09]}  Bf2 {[%clk 0:00:02]} 43. Ra3 {[%clk 0:00:08]}  Bd4 {[%clk 0:00:02]} 44. Nh4 {[%clk 0:00:05]}  Bf6 {[%clk 0:00:02]} 45. Ra4+ {[%clk 0:00:04]}  Ke3 {[%clk 0:00:01]} 46. Nxf5+ {[%clk 0:00:04]}  Kf2 {[%clk 0:00:02]} 47. g4 {[%clk 0:00:05]}  Kg2 {[%clk 0:00:01]} 48. Nxh6 {[%clk 0:00:05]}  Kxh3 {[%clk 0:00:01]} 49. g5 {[%clk 0:00:06]}  Rb5 {[%clk 0:00:01]} 50. Kg6 {[%clk 0:00:05]}  Bb2 {[%clk 0:00:01]} 51. Nf7 {[%clk 0:00:04]}  Rb6+ {[%clk 0:00:01]} 52. Kh5 {[%clk 0:00:04]}  Kg3 {[%clk 0:00:01]} 53. f5 {[%clk 0:00:04]}  Rb7 {[%clk 0:00:02]} 54. Nh6 {[%clk 0:00:04]}  Rb8 {[%clk 0:00:02]} 55. Rg4+ {[%clk 0:00:05]}  Kf3 {[%clk 0:00:02]} 56. f6 {[%clk 0:00:06]}  Rf8 {[%clk 0:00:01]} 57. Kg6 {[%clk 0:00:05]}  Bc3 {[%clk 0:00:01]} 58. Rc4 {[%clk 0:00:05]}  Bb2 {[%clk 0:00:00]} 59. Rb4 {[%clk 0:00:05]} 1-0


[Site "https://www.chess.com"]

[Event "Titled Tuesday Blitz July 25 Early 2023"]
[White "Matinian, Nikita"]
[Black "Ezat, Mohamed"]
[WhiteFideId "24129100"]
[BlackFideId "10600906"]
[WhiteElo "2746"]
[BlackElo "2600"]
[Result "1/2-1/2"]
[Round "10"]
[TimeControl "180+2"]
[Date "2023.07.25"]
[WhiteClock "0:00:03"]
[BlackClock "0:00:15"]
[Board "49"]

1. e4 {[%clk 0:02:49]}  e5 {[%clk 0:02:59]} 2. Nf3 {[%clk 0:02:49]}  Nc6 {[%clk 0:02:57]} 3. Bb5 {[%clk 0:02:50]}  Nge7 {[%clk 0:02:56]} 4. Nc3 {[%clk 0:02:47]}  d6 {[%clk 0:02:55]} 5. d4 {[%clk 0:02:47]}  Bd7 {[%clk 0:02:55]} 6. O-O {[%clk 0:02:43]}  Ng6 {[%clk 0:02:49]} 7. d5 {[%clk 0:02:27]}  Nce7 {[%clk 0:02:43]} 8. a4 {[%clk 0:02:27]}  Ng8 {[%clk 0:02:40]} 9. Be3 {[%clk 0:02:24]}  Nf6 {[%clk 0:02:40]} 10. Nd2 {[%clk 0:02:22]}  Be7 {[%clk 0:02:31]} 11. f3 {[%clk 0:02:19]}  Nh5 {[%clk 0:02:30]} 12. Bxd7+ {[%clk 0:02:19]}  Qxd7 {[%clk 0:02:30]} 13. a5 {[%clk 0:02:16]}  a6 {[%clk 0:02:28]} 14. Ne2 {[%clk 0:02:13]}  h6 {[%clk 0:02:27]} 15. c4 {[%clk 0:02:13]}  Bg5 {[%clk 0:02:27]} 16. Bf2 {[%clk 0:02:13]}  Bxd2 {[%clk 0:02:20]} 17. Qxd2 {[%clk 0:02:13]}  O-O {[%clk 0:02:20]} 18. c5 {[%clk 0:02:13]}  f5 {[%clk 0:02:19]} 19. exf5 {[%clk 0:01:53]}  Ngf4 {[%clk 0:02:19]} 20. Ng3 {[%clk 0:01:42]}  Qb5 {[%clk 0:01:51]} 21. Nxh5 {[%clk 0:01:27]}  Nxh5 {[%clk 0:01:50]} 22. cxd6 {[%clk 0:01:18]}  cxd6 {[%clk 0:01:49]} 23. g4 {[%clk 0:01:13]}  Nf4 {[%clk 0:01:49]} 24. Be3 {[%clk 0:00:57]}  Nxd5 {[%clk 0:01:43]} 25. Rfd1 {[%clk 0:00:57]}  Nf6 {[%clk 0:01:00]} 26. h3 {[%clk 0:00:35]}  d5 {[%clk 0:00:57]} 27. Rac1 {[%clk 0:00:30]}  Rac8 {[%clk 0:00:56]} 28. Bxh6 {[%clk 0:00:24]}  Rxc1 {[%clk 0:00:47]} 29. Rxc1 {[%clk 0:00:23]}  gxh6 {[%clk 0:00:33]} 30. Qxh6 {[%clk 0:00:24]}  Qd7 {[%clk 0:00:33]} 31. Kg2 {[%clk 0:00:15]}  e4 {[%clk 0:00:32]} 32. Qg6+ {[%clk 0:00:12]}  Qg7 {[%clk 0:00:28]} 33. Qxg7+ {[%clk 0:00:12]}  Kxg7 {[%clk 0:00:28]} 34. fxe4 {[%clk 0:00:12]}  Nxe4 {[%clk 0:00:27]} 35. h4 {[%clk 0:00:09]}  Kf6 {[%clk 0:00:20]} 36. Kf3 {[%clk 0:00:09]}  Ke5 {[%clk 0:00:20]} 37. Rc7 {[%clk 0:00:08]}  Rh8 {[%clk 0:00:18]} 38. h5 {[%clk 0:00:07]}  Rg8 {[%clk 0:00:17]} 39. Rxb7 {[%clk 0:00:05]}  Nd2+ {[%clk 0:00:16]} 40. Kg3 {[%clk 0:00:04]}  Ne4+ {[%clk 0:00:16]} 41. Kf3 {[%clk 0:00:05]}  Nd2+ {[%clk 0:00:16]} 42. Ke2 {[%clk 0:00:03]}  Ne4 {[%clk 0:00:15]} 43. Kf3 {[%clk 0:00:03]} 1/2-1/2


[Site "https://www.chess.com"]

[Event "Titled Tuesday Blitz July 25 Early 2023"]
[White "Panesar Vedant"]
[Black "Ambartsumova, Karina"]
[WhiteFideId "35033018"]
[BlackFideId "4166299"]
[WhiteElo "2713"]
[BlackElo "2563"]
[Result "1-0"]
[Round "10"]
[TimeControl "180+2"]
[Date "2023.07.25"]
[WhiteClock "0:00:19"]
[BlackClock "0:00:00"]
[Board "53"]

1. d4 {[%clk 0:03:00]}  d6 {[%clk 0:02:59]} 2. Nf3 {[%clk 0:02:59]}  g6 {[%clk 0:02:59]} 3. c4 {[%clk 0:03:00]}  Bg7 {[%clk 0:02:59]} 4. g3 {[%clk 0:03:00]}  Nf6 {[%clk 0:02:57]} 5. Bg2 {[%clk 0:03:01]}  O-O {[%clk 0:02:57]} 6. O-O {[%clk 0:03:02]}  c6 {[%clk 0:02:58]} 7. Nc3 {[%clk 0:03:02]}  Bf5 {[%clk 0:02:58]} 8. Ne1 {[%clk 0:02:59]}  Be6 {[%clk 0:02:55]} 9. b3 {[%clk 0:02:57]}  d5 {[%clk 0:02:55]} 10. cxd5 {[%clk 0:02:58]}  cxd5 {[%clk 0:02:55]} 11. Nd3 {[%clk 0:02:58]}  Nc6 {[%clk 0:02:55]} 12. Nf4 {[%clk 0:02:58]}  Qd7 {[%clk 0:02:06]} 13. Ba3 {[%clk 0:02:56]}  Rfd8 {[%clk 0:01:51]} 14. Nxe6 {[%clk 0:02:54]}  Qxe6 {[%clk 0:01:51]} 15. e3 {[%clk 0:02:54]}  Rac8 {[%clk 0:01:49]} 16. Rc1 {[%clk 0:02:54]}  b6 {[%clk 0:01:38]} 17. Qd3 {[%clk 0:02:51]}  Qd7 {[%clk 0:01:37]} 18. Rfd1 {[%clk 0:02:48]}  e6 {[%clk 0:01:35]} 19. Qa6 {[%clk 0:02:34]}  Nb8 {[%clk 0:01:26]} 20. Qb5 {[%clk 0:02:27]}  Qxb5 {[%clk 0:01:10]} 21. Nxb5 {[%clk 0:02:27]}  a6 {[%clk 0:01:10]} 22. Na7 {[%clk 0:02:12]}  Rxc1 {[%clk 0:01:09]} 23. Rxc1 {[%clk 0:02:13]}  Ne8 {[%clk 0:01:01]} 24. Nc8 {[%clk 0:01:50]}  b5 {[%clk 0:01:01]} 25. Ne7+ {[%clk 0:01:36]}  Kh8 {[%clk 0:01:00]} 26. Bf1 {[%clk 0:01:37]}  Bf6 {[%clk 0:00:42]} 27. Nc6 {[%clk 0:01:34]}  Nxc6 {[%clk 0:00:33]} 28. Rxc6 {[%clk 0:01:34]}  Ra8 {[%clk 0:00:34]} 29. Bc5 {[%clk 0:01:32]}  Bd8 {[%clk 0:00:31]} 30. a4 {[%clk 0:01:31]}  bxa4 {[%clk 0:00:31]} 31. bxa4 {[%clk 0:01:32]}  a5 {[%clk 0:00:31]} 32. g4 {[%clk 0:01:22]}  Kg7 {[%clk 0:00:29]} 33. Kg2 {[%clk 0:01:15]}  h6 {[%clk 0:00:27]} 34. Bd3 {[%clk 0:01:13]}  Nf6 {[%clk 0:00:27]} 35. f3 {[%clk 0:01:10]}  Rb8 {[%clk 0:00:23]} 36. Bb5 {[%clk 0:01:08]}  Ra8 {[%clk 0:00:17]} 37. h3 {[%clk 0:01:01]}  Nd7 {[%clk 0:00:17]} 38. Bd6 {[%clk 0:00:55]}  Nf6 {[%clk 0:00:15]} 39. Kf2 {[%clk 0:00:53]}  Ne8 {[%clk 0:00:10]} 40. Be5+ {[%clk 0:00:52]}  Bf6 {[%clk 0:00:08]} 41. Bg3 {[%clk 0:00:49]}  Be7 {[%clk 0:00:07]} 42. Ke2 {[%clk 0:00:49]}  Nf6 {[%clk 0:00:07]} 43. Rc7 {[%clk 0:00:44]}  Bb4 {[%clk 0:00:06]} 44. Be5 {[%clk 0:00:43]}  g5 {[%clk 0:00:07]} 45. Kf2 {[%clk 0:00:34]}  Kg6 {[%clk 0:00:07]} 46. Bd3+ {[%clk 0:00:34]}  Kg7 {[%clk 0:00:07]} 47. Kg3 {[%clk 0:00:33]}  Re8 {[%clk 0:00:07]} 48. h4 {[%clk 0:00:29]}  Re7 {[%clk 0:00:07]} 49. Rc8 {[%clk 0:00:25]}  Ra7 {[%clk 0:00:06]} 50. hxg5 {[%clk 0:00:23]}  hxg5 {[%clk 0:00:06]} 51. f4 {[%clk 0:00:24]}  gxf4+ {[%clk 0:00:06]} 52. exf4 {[%clk 0:00:24]}  Be7 {[%clk 0:00:01]} 53. g5 {[%clk 0:00:23]}  Rb7 {[%clk 0:00:02]} 54. gxf6+ {[%clk 0:00:22]}  Bxf6 {[%clk 0:00:03]} 55. Bb5 {[%clk 0:00:23]}  Kg6 {[%clk 0:00:01]} 56. Bxf6 {[%clk 0:00:20]}  Kxf6 {[%clk 0:00:02]} 57. Kf3 {[%clk 0:00:20]}  Ke7 {[%clk 0:00:01]} 58. Ke3 {[%clk 0:00:19]}  f6 {[%clk 0:00:01]} 59. Rh8 {[%clk 0:00:19]}  Kd6 {[%clk 0:00:01]} 60. Rh6 {[%clk 0:00:20]}  Rf7 {[%clk 0:00:01]} 61. f5 {[%clk 0:00:20]}  e5 {[%clk 0:00:01]} 62. Rg6 {[%clk 0:00:20]}  e4 {[%clk 0:00:01]} 63. Kf4 {[%clk 0:00:18]}  Rf8 {[%clk 0:00:01]} 64. Be2 {[%clk 0:00:18]}  Rf7 {[%clk 0:00:02]} 65. Bh5 {[%clk 0:00:18]}  Rf8 {[%clk 0:00:03]} 66. Rh6 {[%clk 0:00:19]}  Kc6 {[%clk 0:00:02]} 67. Rh7 {[%clk 0:00:18]}  Rb8 {[%clk 0:00:02]} 68. Rf7 {[%clk 0:00:18]}  Rb4 {[%clk 0:00:02]} 69. Rxf6+ {[%clk 0:00:18]}  Kc7 {[%clk 0:00:03]} 70. Ke5 {[%clk 0:00:18]}  e3 {[%clk 0:00:03]} 71. Kxd5 {[%clk 0:00:19]}  Rxa4 {[%clk 0:00:00]} 72. Re6 {[%clk 0:00:19]} 1-0


[Site "https://www.chess.com"]